bitfinex/quotes_BTCUSD_20240820
["timestamp","ask_amount","ask_price","bid_price","bid_amount"]
[1724177410643,0.27880982,59406.0,59405.0,0.0758531]
[1724177411053,0.27580982,59406.0,59405.0,0.0758531]
[1724177411659,0.25280982,59406.0,59405.0,0.0758531]
[1724177411834,0.27580982,59406.0,59405.0,0.0758531]
[1724177412035,0.27280982,59406.0,59405.0,0.0758531]
[1724177413748,0.22343428,59406.0,59405.0,0.2123531]
[1724177414836,0.22443428,59406.0,59405.0,0.2183531]
[1724177415441,0.25080567,59406.0,59405.0,0.2183531]
[1724177415664,0.22443428,59406.0,59405.0,0.2183531]
[1724177416367,0.25080555,59406.0,59405.0,0.2183531]
[1724177416575,0.25501105,59406.0,59405.0,0.2183531]
[1724177416778,0.25501105,59406.0,59405.0,0.0818531]
[1724177416779,0.25910799,59406.0,59405.0,0.0818531]
[1724177417012,0.27480278,59406.0,59405.0,0.0818531]
[1724177417217,0.27680278,59406.0,59405.0,0.0818531]
[1724177417801,0.41146878,59406.0,59405.0,0.0818531]
[1724177418030,0.68280178,59406.0,59405.0,0.0818531]
[1724177418485,0.41346878,59406.0,59405.0,0.0818531]
[1724177418610,0.68280178,59406.0,59405.0,0.0818531]
[1724177418813,0.68180178,59406.0,59405.0,0.0758531]
[1724177419040,0.68180178,59406.0,59405.0,0.0798531]
[1724177419740,0.97663478,59406.0,59405.0,0.0798531]
[1724177419943,1.05218183,59406.0,59405.0,0.0798531]
[1724177420352,0.97663696,59406.0,59405.0,0.0798531]
[1724177420573,0.97663696,59406.0,59405.0,0.0758531]
[1724177421096,0.97963696,59406.0,59405.0,0.0758531]
[1724177421428,1.10562353,59406.0,59405.0,0.0758531]
[1724177421632,1.34896996,59406.0,59405.0,0.0758531]
[1724177421836,1.37696996,59406.0,59405.0,0.0758531]
[1724177423725,1.52815188,59406.0,59405.0,0.0758531]
[1724177424126,1.37696996,59406.0,59405.0,0.0758531]
[1724177424346,1.36127299,59406.0,59405.0,0.0758531]
[1724177424541,1.37697216,59406.0,59405.0,0.0758531]
[1724177424748,1.37397216,59406.0,59405.0,0.0758531]
[1724177425150,1.37797216,59406.0,59405.0,0.0758531]
[1724177428796,1.63160599,59406.0,59405.0,0.0758531]
[1724177429005,1.64730564,59406.0,59405.0,0.0758531]
[1724177429415,1.66493253,59406.0,59405.0,0.06148695]
[1724177430073,1.66493418,59406.0,59405.0,0.06148695]
[1724177431832,1.66575618,59406.0,59405.0,0.06148695]
[1724177432041,1.577935,59389.0,59388.0,0.0009031]
[1724177432246,1.62000757,59389.0,59388.0,0.0009031]
[1724177432444,1.750622,59389.0,59388.0,0.0009031]
[1724177432645,1.90209903,59389.0,59388.0,0.0009031]
[1724177433428,1.751622,59389.0,59388.0,0.0099031]
[1724177433844,0.702687,59389.0,59388.0,0.1434031]
[1724177434244,0.91707706,59389.0,59388.0,0.1434031]
[1724177434441,0.34278389,59389.0,59388.0,0.1434031]
[1724177434867,0.477486,59389.0,59388.0,0.1434031]
[1724177435099,0.47748663,59389.0,59388.0,0.1434031]
[1724177435390,0.34278163,59389.0,59388.0,0.1434031]
[1724177435592,0.30376029,59389.0,59388.0,0.1434031]
[1724177436057,0.32976029,59389.0,59388.0,0.1434031]
[1724177436463,0.32676029,59389.0,59388.0,0.1434031]
[1724177436864,0.27931372,59389.0,59388.0,0.1434031]
[1724177437823,0.25631372,59389.0,59388.0,0.1434031]
[1724177439296,0.25331372,59389.0,59388.0,0.1434031]
[1724177439631,0.25731372,59389.0,59388.0,0.1434031]
[1724177439877,0.05731372,59389.0,59388.0,0.1434031]
[1724177440050,0.05331372,59389.0,59388.0,0.1434031]
[1724177440261,0.23761189,59389.0,59388.0,0.1434031]
[1724177440454,0.22331225,59389.0,59388.0,0.1444031]
[1724177441142,0.22431225,59389.0,59388.0,0.1434031]
[1724177441341,1.05121933,59389.0,59388.0,0.0009031]
[1724177441546,1.47472588,59389.0,59388.0,0.0009031]
[1724177441754,0.77780933,59389.0,59388.0,0.0009031]
[1724177441953,0.8806916,59389.0,59388.0,0.0009031]
[1724177442164,1.17531588,59389.0,59388.0,0.0009031]
[1724177442361,1.07671933,59389.0,59388.0,0.0009031]
[1724177442566,1.37412933,59389.0,59388.0,0.0049031]
[1724177442770,1.37413201,59389.0,59388.0,0.0049031]
[1724177442971,1.66883201,59389.0,59388.0,0.0009031]
[1724177443172,1.82214701,59389.0,59388.0,0.0009031]
[1724177443391,1.67083201,59389.0,59388.0,0.0009031]
[1724177443595,1.82211308,59389.0,59388.0,0.0009031]
[1724177444008,1.82011308,59389.0,59388.0,0.0009031]
[1724177444213,2.09352308,59389.0,59388.0,0.0009031]
[1724177444389,1.95255839,59389.0,59388.0,0.0009031]
[1724177444584,1.68314839,59389.0,59388.0,0.0009031]
[1724177444789,1.95255839,59389.0,59388.0,0.0009031]
[1724177444990,1.95255839,59389.0,59388.0,0.00077178]
[1724177445370,1.94855839,59389.0,59388.0,0.00077178]
[1724177445823,2.195788,59377.0,59376.0,0.000902]
[1724177446035,2.36087312,59377.0,59376.0,0.000902]
[1724177446258,2.69747312,59377.0,59376.0,0.000902]
[1724177447200,2.19599,59367.0,59366.0,0.000902]
[1724177447418,2.36107512,59367.0,59366.0,0.000902]
[1724177448263,2.34537208,59367.0,59366.0,0.000802]
[1724177448493,2.36108487,59367.0,59366.0,0.000802]
[1724177448937,2.61488108,59367.0,59366.0,0.000802]
[1724177449147,2.63059594,59367.0,59366.0,0.000802]
[1724177449350,2.36108694,59367.0,59366.0,0.000802]
[1724177449554,2.48978719,59367.0,59366.0,0.000802]
[1724177449980,2.48678719,59367.0,59366.0,0.000802]
[1724177450180,2.48878719,59367.0,59366.0,0.000802]
[1724177450595,2.46359059,59367.0,59366.0,0.000802]
[1724177451017,2.46359077,59367.0,59366.0,0.000802]
[1724177451373,2.43842852,59367.0,59366.0,0.000802]
[1724177451572,2.36108694,59367.0,59366.0,0.000802]
[1724177451773,2.48966431,59367.0,59366.0,0.000802]
[1724177451957,2.36408694,59367.0,59366.0,0.000802]
[1724177452157,2.48966278,59367.0,59366.0,0.000802]
[1724177452357,2.46150316,59367.0,59366.0,0.000802]
[1724177452571,2.46350316,59367.0,59366.0,0.000802]
[1724177453198,2.46150316,59367.0,59366.0,0.000802]
[1724177453406,2.36308635,59367.0,59366.0,0.000802]
[1724177453602,2.41327309,59367.0,59366.0,0.000802]
[1724177454436,2.36308635,59367.0,59366.0,0.000802]
[1724177454724,2.30758635,59367.0,59366.0,0.000802]
[1724177454937,2.31058635,59367.0,59366.0,0.00068422]
[1724177455374,2.30758587,59367.0,59366.0,0.00068422]
[1724177455905,2.30958587,59367.0,59366.0,0.00068422]
[1724177456145,2.04007694,59367.0,59366.0,0.00068422]
[1724177456364,2.03807694,59367.0,59366.0,0.00068422]
[1724177456562,2.04007694,59367.0,59366.0,0.00068422]
[1724177457432,2.30958594,59367.0,59366.0,0.00068422]
[1724177457817,2.30758594,59367.0,59366.0,0.00068422]
[1724177458159,2.31058594,59367.0,59366.0,0.00068422]
[1724177458719,2.30758594,59367.0,59366.0,0.00068422]
[1724177458928,2.31058594,59367.0,59366.0,0.00068422]
[1724177459127,2.33608594,59367.0,59366.0,0.00068422]
[1724177459355,2.63359494,59367.0,59366.0,0.00068422]
[1724177459595,1.847957,59359.0,59356.0,0.000902]
[1724177459798,2.01305294,59359.0,59356.0,0.000902]
[1724177459929,2.01305294,59359.0,59358.0,0.089831]
[1724177459930,2.08010694,59359.0,59358.0,0.089831]
[1724177460340,2.05372486,59359.0,59358.0,0.089831]
[1724177460538,2.05372486,59359.0,59358.0,0.009031]
[1724177461145,2.32327086,59359.0,59358.0,0.009031]
[1724177461368,2.08012475,59359.0,59358.0,0.009031]
[1724177461569,2.06622475,59359.0,59358.0,0.009031]
[1724177461769,2.33677075,59359.0,59358.0,0.009031]
[1724177462422,2.01407075,59359.0,59358.0,0.009031]
[1724177462632,1.74452475,59359.0,59358.0,0.009031]
[1724177462834,1.74752556,59359.0,59358.0,0.009031]
[1724177463043,1.72112567,59359.0,59358.0,0.009031]
[1724177463246,1.72012534,59359.0,59358.0,0.008981]
[1724177463448,1.74652533,59359.0,59358.0,0.008981]
[1724177463878,1.75152533,59359.0,59358.0,0.008981]
[1724177464099,1.74652533,59359.0,59358.0,0.008981]
[1724177464511,2.30777133,59359.0,59358.0,0.011981]
[1724177464690,2.31077133,59359.0,59358.0,0.011981]
[1724177465196,2.30777133,59359.0,59358.0,0.01022231]
[1724177465615,2.31077133,59359.0,59358.0,0.01022231]
[1724177465801,2.31077133,59359.0,59358.0,0.07452231]
[1724177466003,1.74652533,59359.0,59358.0,0.07452231]
[1724177466188,1.74652533,59359.0,59358.0,0.07152231]
[1724177466189,0.38348734,59359.0,59358.0,0.07152231]
[1724177466388,0.637319,59359.0,59358.0,0.15072231]
[1724177466589,0.65603187,59359.0,59358.0,0.15072231]
[1724177466751,0.65303187,59359.0,59358.0,0.15072231]
[1724177467178,0.24571287,59359.0,59358.0,0.15072231]
[1724177467392,0.21571287,59359.0,59358.0,0.15072231]
[1724177467773,0.21971287,59359.0,59358.0,0.15972231]
[1724177469076,0.01671287,59359.0,59358.0,0.15972231]
[1724177469238,0.01971287,59359.0,59358.0,0.15972231]
[1724177469441,0.2,59364.0,59360.0,0.0761]
[1724177469645,0.68810383,59377.0,59360.0,0.0761]
[1724177469646,0.01570763,59363.0,59360.0,0.1399]
[1724177469850,0.52229154,59379.0,59358.0,0.01622231]
[1724177469851,0.2,59381.0,59362.0,0.0761]
[1724177470028,0.2,59381.0,59361.0,0.31368118]
[1724177470029,0.01570161,59375.0,59372.0,0.0751]
[1724177470231,0.01570161,59374.0,59372.0,0.0751]
[1724177470452,0.2,59381.0,59373.0,0.0638]
[1724177470652,0.01570033,59375.0,59373.0,0.0638]
[1724177470920,0.2,59381.0,59373.0,0.03585]
[1724177471165,0.01569312,59380.0,59373.0,0.03485]
[1724177471338,0.001,59374.0,59373.0,0.03485]
[1724177471512,0.001,59374.0,59372.0,0.014]
[1724177471733,0.2,59381.0,59363.0,0.00336833]
[1724177471932,0.002,59375.0,59373.0,0.014]
[1724177472460,0.00796467,59374.0,59373.0,0.014]
[1724177472983,0.2,59381.0,59373.0,0.014]
[1724177473187,0.01569015,59380.0,59375.0,0.0761]
[1724177473391,0.01569015,59379.0,59375.0,0.0761]
[1724177473546,0.01569015,59378.0,59375.0,0.0761]
[1724177473747,0.01569015,59377.0,59376.0,0.0649]
[1724177473948,0.2,59387.0,59376.0,0.0649]
[1724177473949,0.2,59387.0,59377.0,0.0809]
[1724177474151,0.0156885,59386.0,59380.0,0.2947]
[1724177474351,0.0156885,59385.0,59381.0,0.0809]
[1724177474554,0.0156885,59384.0,59383.0,0.0799]
[1724177474750,0.2,59387.0,59383.0,0.0799]
[1724177475164,0.2,59387.0,59374.0,0.2947]
[1724177475427,0.00420982,59386.0,59380.0,0.005]
[1724177475582,0.2,59387.0,59381.0,0.014]
[1724177476804,0.2,59387.0,59375.0,0.0634]
[1724177476977,0.201,59387.0,59384.0,0.0634]
[1724177477751,0.2,59387.0,59385.0,0.0808]
[1724177478173,0.269423,59386.0,59385.0,0.0808]
[1724177478376,0.269423,59386.0,59381.0,0.019]
[1724177478377,0.13472,59382.0,59381.0,0.005]
[1724177478579,0.05720996,59386.0,59377.0,0.0648]
[1724177478580,0.2,59378.0,59377.0,0.0648]
[1724177478997,0.35773,59378.0,59377.0,0.0648]
[1724177479174,0.2,59378.0,59377.0,0.1428]
[1724177479831,0.2,59384.0,59377.0,0.1428]
[1724177480042,0.2,59384.0,59378.0,0.0769]
[1724177480243,0.2,59384.0,59380.0,0.0769]
[1724177480652,0.2,59384.0,59380.0,0.0759]
[1724177480853,0.2,59384.0,59380.0,0.0749]
[1724177481262,0.00421025,59383.0,59380.0,0.0749]
[1724177481466,0.00421025,59383.0,59380.0,0.0789]
[1724177481676,0.202,59384.0,59380.0,0.0929]
[1724177481887,0.00421023,59383.0,59380.0,0.0929]
[1724177482091,0.01989843,59383.0,59380.0,0.0929]
[1724177482291,0.0156882,59382.0,59380.0,0.0929]
[1724177482771,0.023,59381.0,59380.0,0.0929]
[1724177482986,0.023,59381.0,59380.0,0.0889]
[1724177483251,0.023,59382.0,59380.0,0.0919]
[1724177483497,0.023,59382.0,59380.0,0.0779]
[1724177483704,0.134723,59381.0,59380.0,0.0749]
[1724177483913,0.134723,59381.0,59380.0,0.0889]
[1724177483914,0.157723,59381.0,59380.0,0.0889]
[1724177484133,0.697615,59381.0,59380.0,0.0799]
[1724177484342,0.802615,59381.0,59380.0,0.005]
[1724177484545,1.071061,59381.0,59380.0,0.014]
[1724177484758,0.2,59373.0,59372.0,0.0832]
[1724177484976,0.223,59373.0,59372.0,0.0832]
[1724177486719,0.357741,59373.0,59372.0,0.0832]
[1724177487137,0.2,59373.0,59372.0,0.0832]
[1724177487342,0.201,59373.0,59372.0,0.0872]
[1724177487536,0.002,59373.0,59372.0,0.1012]
[1724177487740,0.002,59373.0,59372.0,0.1598]
[1724177487741,0.001,59373.0,59372.0,0.1598]
[1724177488147,0.001,59373.0,59372.0,0.1618]
[1724177488344,0.2,59379.0,59372.0,0.1618]
[1724177488345,0.2,59379.0,59373.0,0.0773]
[1724177488459,0.023,59378.0,59373.0,0.0773]
[1724177488661,0.2,59379.0,59374.0,0.0626]
[1724177489517,0.2,59385.0,59374.0,0.0626]
[1724177490151,0.2,59385.0,59374.0,0.0616]
[1724177490363,0.2,59385.0,59374.0,0.0606]
[1724177490798,0.2,59385.0,59374.0,0.0706]
[1724177491005,0.203,59385.0,59374.0,0.0706]
[1724177491222,0.203,59385.0,59374.0,0.0606]
[1724177491435,0.204,59385.0,59374.0,0.0746]
[1724177491645,0.204,59385.0,59375.0,0.0766]
[1724177492376,0.204,59385.0,59368.0,0.00336814]
[1724177492377,0.2,59385.0,59377.0,0.0766]
[1724177492593,0.201,59385.0,59377.0,0.0766]
[1724177493209,0.2,59385.0,59377.0,0.0766]
[1724177493426,0.201,59385.0,59378.0,0.0655]
[1724177493636,0.202,59385.0,59379.0,0.081]
[1724177493863,0.201,59385.0,59379.0,0.081]
[1724177494066,0.201,59385.0,59380.0,0.0663]
[1724177494276,0.201,59385.0,59382.0,0.0663]
[1724177494277,0.203,59385.0,59382.0,0.0663]
[1724177494484,0.201,59385.0,59383.0,0.081]
[1724177494891,0.202,59385.0,59383.0,0.081]
[1724177495224,0.201,59385.0,59383.0,0.081]
[1724177495605,0.202,59385.0,59383.0,0.081]
[1724177495805,0.202,59385.0,59384.0,0.1473]
[1724177496138,0.201,59385.0,59384.0,0.1473]
[1724177496560,0.202,59385.0,59384.0,0.1473]
[1724177496772,0.269359,59401.0,59384.0,0.1473]
[1724177496773,0.05015344,59416.0,59385.0,0.0663]
[1724177496978,0.12620462,59423.0,59411.0,0.0544]
[1724177496979,0.000821,59423.0,59411.0,0.0544]
[1724177497173,0.00020392,59429.0,59428.0,0.134616]
[1724177497373,0.00020392,59429.0,59428.0,0.270016]
[1724177497578,0.00821,59436.0,59428.0,0.1]
[1724177497823,0.00821,59436.0,59435.0,0.3677]
[1724177498029,0.00821,59436.0,59435.0,0.515]
[1724177498252,0.00821,59436.0,59435.0,0.64876]
[1724177498463,0.00821,59436.0,59435.0,0.70365418]
[1724177498816,0.00821,59436.0,59435.0,0.64776]
[1724177499431,0.00821,59436.0,59435.0,0.712536]
[1724177499608,0.00921,59436.0,59435.0,0.726536]
[1724177500125,0.00921,59436.0,59435.0,0.67576]
[1724177507219,1e-08,59440.0,59435.0,0.67576]
[1724177507419,1e-08,59440.0,59437.0,0.03376]
[1724177507654,1e-08,59440.0,59438.0,0.00336417]
[1724177507858,1e-08,59440.0,59436.0,0.1]
[1724177507859,0.49229154,59466.0,59454.0,0.002]
[1724177508002,0.49229154,59466.0,59440.0,0.03376]
[1724177508003,0.03,59463.0,59442.0,0.001]
[1724177508202,0.03,59463.0,59448.0,0.002]
[1724177508404,0.1464,59465.0,59460.0,0.002]
[1724177508713,0.0826,59472.0,59460.0,0.002]
[1724177508899,0.0116966,59478.0,59470.0,0.002]
[1724177509115,0.0116966,59478.0,59476.0,0.002]
[1724177509332,0.0116966,59478.0,59476.0,0.001]
[1724177509978,0.0116966,59478.0,59477.0,0.001]
[1724177510200,0.0126966,59478.0,59477.0,0.001]
[1724177510375,0.0126966,59478.0,59477.0,0.00436234]
[1724177510735,0.0126966,59478.0,59477.0,0.04930857]
[1724177510935,0.0126966,59478.0,59477.0,0.00436234]
[1724177511318,0.0116966,59478.0,59477.0,0.00436234]
[1724177511548,0.0116966,59478.0,59477.0,0.015]
[1724177512347,0.0116966,59478.0,59477.0,0.029]
[1724177512757,0.0116966,59478.0,59477.0,0.014]
[1724177512959,0.0116966,59478.0,59469.0,0.0764]
[1724177513163,0.09100382,59477.0,59463.0,0.0764]
[1724177513366,0.09100382,59477.0,59455.0,0.5425]
[1724177513367,0.2,59472.0,59457.0,0.0774]
[1724177513576,0.0836,59470.0,59457.0,0.0764]
[1724177513781,0.0826,59470.0,59457.0,0.0764]
[1724177513984,0.00420423,59469.0,59457.0,0.0764]
[1724177514187,0.2,59472.0,59469.0,0.014]
[1724177514392,0.0638,59477.0,59469.0,0.014]
[1724177514595,0.0638,59477.0,59458.0,0.00436315]
[1724177514596,0.023,59476.0,59458.0,0.00436315]
[1724177514797,0.0638,59477.0,59461.0,0.3687]
[1724177515001,0.0116966,59478.0,59463.0,0.0764]
[1724177515212,0.0116966,59478.0,59475.0,0.001]
[1724177515408,0.0116966,59478.0,59470.0,0.001]
[1724177515615,0.0116966,59478.0,59477.0,0.014]
[1724177515825,0.0346966,59478.0,59477.0,0.014]
[1724177516038,0.0346966,59478.0,59470.0,0.001]
[1724177516214,0.023,59477.0,59470.0,0.001]
[1724177516416,0.0125176,59478.0,59475.0,0.011]
[1724177517033,0.0125176,59478.0,59475.0,0.012]
[1724177517437,0.0125176,59478.0,59475.0,0.011]
[1724177517846,0.0125176,59478.0,59473.0,0.001]
[1724177518052,0.0125176,59478.0,59475.0,0.014]
[1724177518258,0.0125176,59478.0,59475.0,0.0786]
[1724177518455,0.0125176,59478.0,59470.0,0.011]
[1724177518456,0.0125176,59478.0,59472.0,0.001]
[1724177518781,0.0125176,59478.0,59468.0,0.0796]
[1724177518914,0.0991,59477.0,59473.0,0.011]
[1724177519129,0.10330378,59477.0,59473.0,0.011]
[1724177519329,0.09901905,59477.0,59473.0,0.011]
[1724177519591,0.09901905,59477.0,59475.0,0.014]
[1724177519966,0.09901905,59477.0,59472.0,0.012]
[1724177520163,0.09901905,59477.0,59473.0,0.014]
[1724177520345,0.01566005,59476.0,59473.0,0.014]
[1724177520531,0.01566005,59475.0,59472.0,0.012]
[1724177520736,0.09901905,59477.0,59472.0,0.012]
[1724177520932,0.09901905,59477.0,59475.0,0.014]
[1724177521140,0.01566037,59476.0,59465.0,0.001]
[1724177521343,0.23352505,59477.0,59473.0,0.013]
[1724177521344,0.01566025,59475.0,59473.0,0.013]
[1724177521545,0.13276025,59474.0,59473.0,0.027]
[1724177521835,0.24427225,59474.0,59473.0,0.014]
[1724177522040,0.26727225,59474.0,59473.0,0.014]
[1724177522245,0.54050143,59474.0,59473.0,0.014]
[1724177522448,0.80532225,59474.0,59473.0,0.014]
[1724177522656,0.74122225,59474.0,59473.0,0.014]
[1724177522873,0.06866025,59474.0,59473.0,0.028]
[1724177523086,0.2125176,59478.0,59473.0,0.028]
[1724177523290,0.2125176,59478.0,59473.0,0.014]
[1724177523698,0.2125176,59478.0,59475.0,0.014]
[1724177523902,0.2125176,59478.0,59477.0,0.001]
[1724177524159,0.01760178,59477.0,59476.0,0.001]
[1724177524364,0.01760178,59477.0,59475.0,0.001]
[1724177524590,0.01760178,59477.0,59466.0,0.0826]
[1724177524591,0.01760178,59477.0,59476.0,0.001]
[1724177525002,0.01760178,59477.0,59475.0,0.001]
[1724177525834,0.01760178,59477.0,59476.0,0.013]
[1724177526245,0.01760178,59477.0,59476.0,0.014]
[1724177527301,0.01760178,59477.0,59476.0,0.001]
[1724177527707,0.01760178,59477.0,59475.0,0.014]
[1724177527914,0.01760178,59477.0,59475.0,0.001]
[1724177528128,0.01760178,59477.0,59476.0,0.014]
[1724177528336,0.01760178,59477.0,59476.0,0.027]
[1724177528538,0.01760178,59477.0,59476.0,0.028]
[1724177528713,0.01760178,59477.0,59476.0,0.001]
[1724177529145,0.01760178,59477.0,59476.0,0.015]
[1724177529357,0.01760178,59477.0,59476.0,0.0831]
[1724177529569,0.01760178,59477.0,59476.0,0.09923031]
[1724177529770,0.01760178,59477.0,59476.0,0.0971]
[1724177530176,0.01760178,59477.0,59476.0,0.10046255]
[1724177530588,0.01760178,59477.0,59476.0,0.0971]
[1724177530805,0.01760178,59477.0,59476.0,0.1111]
[1724177531012,0.01760178,59477.0,59476.0,0.59766654]
[1724177531217,0.01760178,59477.0,59476.0,0.2111]
[1724177532776,0.01760178,59477.0,59476.0,0.1111]
[1724177532992,0.01760178,59477.0,59476.0,0.1101]
[1724177533222,0.0002,59479.0,59478.0,0.001]
[1724177533625,0.01780009,59479.0,59478.0,0.001]
[1724177534045,0.01780009,59479.0,59476.0,0.0961]
[1724177534620,0.01780009,59479.0,59478.0,0.015]
[1724177535183,0.01780009,59479.0,59478.0,0.0775]
[1724177535594,0.01780009,59479.0,59478.0,0.1532]
[1724177536432,0.01780009,59479.0,59478.0,0.1392]
[1724177536633,0.01780009,59479.0,59478.0,0.0775]
[1724177536871,0.01780009,59479.0,59478.0,0.0915]
[1724177537037,0.01780009,59479.0,59478.0,0.0775]
[1724177537848,0.01780009,59479.0,59478.0,0.0915]
[1724177538050,0.0817,59487.0,59482.0,0.001]
[1724177538267,0.2,59489.0,59482.0,0.01015]
[1724177538638,0.2,59489.0,59486.0,0.001]
[1724177538827,0.03020348,59490.0,59486.0,0.001]
[1724177539327,0.00020348,59490.0,59487.0,0.0765]
[1724177541182,0.00020348,59490.0,59489.0,0.001]
[1724177541606,0.00020348,59490.0,59489.0,0.0043614]
[1724177541816,0.00020348,59490.0,59489.0,0.09381754]
[1724177542055,0.00020348,59490.0,59489.0,0.0762]
[1724177542297,0.00020348,59490.0,59489.0,0.1402]
[1724177542499,0.00020348,59490.0,59489.0,0.2542]
[1724177542709,0.00020348,59490.0,59489.0,0.72593305]
[1724177542915,0.00020348,59490.0,59489.0,0.64138926]
[1724177543109,0.00822,59496.0,59489.0,0.64138926]
[1724177543110,0.00822,59496.0,59495.0,0.001]
[1724177544458,0.00822,59496.0,59495.0,0.015]
[1724177544680,0.00822,59496.0,59495.0,0.014]
[1724177545099,0.00822,59496.0,59495.0,0.1094]
[1724177545303,0.00822,59496.0,59495.0,0.1104]
[1724177547552,0.00090954,59496.0,59495.0,0.307565]
[1724177547787,0.00090954,59496.0,59495.0,0.85748647]
[1724177547952,0.00090954,59496.0,59495.0,0.96168069]
[1724177548156,0.0002,59499.0,59498.0,0.11526]
[1724177548337,0.0002,59499.0,59498.0,1.03424733]
[1724177548559,0.0002,59499.0,59498.0,1.05549478]
[1724177548812,0.0002,59499.0,59498.0,1.69111211]
[1724177549069,0.0002,59499.0,59498.0,1.28237733]
[1724177549295,0.0002,59499.0,59498.0,0.64676]
[1724177549721,0.0002,59499.0,59498.0,0.17806]
[1724177549930,0.0002,59499.0,59498.0,0.1443]
[1724177550138,0.0002,59499.0,59498.0,0.0815]
[1724177550333,0.0002,59499.0,59498.0,0.0955]
[1724177550640,0.0002,59499.0,59498.0,0.015]
[1724177550848,0.0002,59499.0,59494.0,0.0771]
[1724177551053,0.0002,59499.0,59498.0,0.015]
[1724177551258,0.0002,59499.0,59498.0,0.014]
[1724177551871,0.0002,59499.0,59490.0,0.001]
[1724177552074,0.0002,59499.0,59494.0,0.014]
[1724177552276,0.0002,59499.0,59494.0,0.028]
[1724177552488,0.1443,59498.0,59494.0,0.014]
[1724177552698,0.03,59496.0,59494.0,0.014]
[1724177553313,0.03,59496.0,59483.0,0.00120237]
[1724177553717,0.03,59496.0,59490.0,0.001]
[1724177553921,0.03,59496.0,59492.0,0.001]
[1724177554128,0.03,59496.0,59483.0,0.00020237]
[1724177554129,0.03,59496.0,59490.0,0.001]
[1724177554342,0.03,59496.0,59494.0,0.014]
[1724177554547,0.03,59496.0,59490.0,0.001]
[1724177554959,0.03,59496.0,59490.0,0.015]
[1724177555167,0.03,59496.0,59494.0,0.001]
[1724177555370,0.03,59496.0,59490.0,0.021]
[1724177556200,0.134467,59494.0,59490.0,0.02]
[1724177556371,0.03,59496.0,59490.0,0.02]
[1724177556372,0.477074,59491.0,59490.0,0.02]
[1724177556781,0.746022,59491.0,59490.0,0.014]
[1724177556953,0.03,59484.0,59483.0,0.00020237]
[1724177558490,0.03,59484.0,59483.0,0.01420237]
[1724177560005,0.031,59484.0,59483.0,0.01420237]
[1724177560372,0.031,59484.0,59483.0,0.02820237]
[1724177560575,0.031,59484.0,59483.0,0.02774365]
[1724177563736,0.001,59484.0,59483.0,0.02774365]
[1724177564119,0.0811,59484.0,59483.0,0.02774365]
[1724177564248,0.147,59484.0,59483.0,0.02774365]
[1724177565289,0.55467129,59484.0,59483.0,0.02774365]
[1724177565493,0.87298994,59484.0,59483.0,0.02774365]
[1724177565706,0.59980765,59484.0,59483.0,0.02774365]
[1724177565913,0.86878665,59484.0,59483.0,0.02864785]
[1724177566323,0.86878665,59484.0,59483.0,0.01464785]
[1724177566553,0.86878665,59484.0,59483.0,0.01764785]
[1724177566994,0.86778665,59484.0,59483.0,0.0009042]
[1724177567411,0.19933965,59484.0,59483.0,0.0149042]
[1724177567624,0.19933965,59484.0,59483.0,0.0009042]
[1724177567625,0.19833965,59484.0,59483.0,0.0009042]
[1724177567836,0.32982865,59484.0,59483.0,0.0009042]
[1724177568039,0.59980765,59484.0,59483.0,0.0109042]
[1724177568270,0.59880765,59484.0,59483.0,0.0009042]
[1724177568494,0.59880765,59484.0,59483.0,0.0149042]
[1724177568732,0.60280765,59484.0,59483.0,0.0149042]
[1724177568937,0.87178665,59484.0,59483.0,0.0009042]
[1724177569142,0.88938902,59484.0,59483.0,0.0009042]
[1724177570229,0.88738902,59484.0,59483.0,0.0149042]
[1724177570419,0.88738902,59484.0,59483.0,0.0009042]
[1724177570873,0.88838902,59484.0,59483.0,0.0149042]
[1724177571020,0.88738902,59484.0,59483.0,0.0149042]
[1724177571430,0.19194202,59484.0,59483.0,0.0149042]
[1724177571854,1.26438902,59484.0,59483.0,0.0149042]
[1724177572062,1.53336802,59484.0,59483.0,0.0149042]
[1724177572325,1.53436802,59484.0,59483.0,0.0149042]
[1724177572535,1.90534702,59484.0,59483.0,0.0149042]
[1724177572739,1.7830319,59484.0,59483.0,0.0149042]
[1724177572945,1.66036802,59484.0,59483.0,0.0149042]
[1724177573139,1.7830319,59484.0,59483.0,0.0149042]
[1724177573361,1.7840319,59484.0,59483.0,0.0149042]
[1724177573572,1.7860319,59484.0,59483.0,0.0149042]
[1724177574217,1.92934702,59484.0,59483.0,0.0149042]
[1724177574441,1.66036802,59484.0,59483.0,0.0149042]
[1724177574652,1.7860319,59484.0,59483.0,0.0149042]
[1724177574863,2.0550109,59484.0,59483.0,0.0149042]
[1724177575063,1.92934702,59484.0,59483.0,0.0149042]
[1724177575684,2.0550109,59484.0,59483.0,0.0149042]
[1724177575873,1.7860319,59484.0,59483.0,0.01341379]
[1724177576077,1.66036802,59484.0,59483.0,0.01341379]
[1724177578110,1.92934702,59484.0,59483.0,0.01341379]
[1724177578527,1.66036802,59484.0,59483.0,0.01341379]
[1724177578743,1.907949,59477.0,59476.0,0.0009031]
[1724177578948,3.25298865,59477.0,59476.0,0.0009031]
[1724177579152,3.74756423,59477.0,59476.0,0.0009031]
[1724177579358,3.50155323,59477.0,59476.0,0.0009031]
[1724177579565,3.37598865,59477.0,59476.0,0.0009031]
[1724177579778,2.83496665,59477.0,59476.0,0.0009031]
[1724177580553,2.83596665,59477.0,59476.0,0.0049031]
[1724177580724,3.10797765,59477.0,59476.0,0.0049031]
[1724177581329,2.73796665,59477.0,59476.0,0.0049031]
[1724177581552,1.23195565,59477.0,59476.0,0.0049031]
[1724177581929,0.004,59477.0,59476.0,0.0049031]
[1724177582813,0.001,59477.0,59476.0,0.0049031]
[1724177583260,0.001,59477.0,59476.0,0.0936031]
[1724177583718,0.002,59477.0,59476.0,0.1076031]
[1724177583926,0.002,59477.0,59476.0,0.0239031]